bitfinex/quotes_SOLUSD_20250829
["timestamp","ask_amount","ask_price","bid_price","bid_amount"]
[1756427135192,0.67,215.71,215.69,20.0]
[1756427135380,12.97281584,215.73,215.69,20.0]
[1756427135569,4.6954734,215.73,215.69,20.0]
[1756427135976,5.3654734,215.73,215.69,20.0]
[1756427136179,8.27734244,215.72,215.69,20.0]
[1756427136391,8.94734244,215.72,215.69,20.0]
[1756427137399,0.67,215.71,215.69,20.0]
[1756427137793,12.91307782,215.72,215.69,20.0]
[1756427137794,4.63573538,215.72,215.69,20.0]
[1756427138099,5.30573538,215.72,215.69,20.0]
[1756427138303,5.30573538,215.72,215.68,20.0]
[1756427138474,5.30573538,215.72,215.71,20.0]
[1756427139296,5.30573538,215.72,215.68,20.0]
[1756427139468,5.30573538,215.72,215.71,20.0]
[1756427141394,0.06,215.73,215.71,20.0]
[1756427141698,0.06,215.73,215.72,12.91298123]
[1756427141995,0.06,215.73,215.72,8.27734244]
[1756427143894,9.00734244,215.73,215.71,20.0]
[1756427144097,0.67,215.72,215.71,20.0]
[1756427144300,0.06,215.73,215.71,20.0]
[1756427144466,0.06,215.73,215.71,66.53734244]
[1756427144968,0.06,215.73,215.72,8.27734244]
[1756427145802,0.06,215.73,215.72,51.17298123]
[1756427146090,0.06,215.73,215.72,46.53734244]
[1756427146390,0.06,215.73,215.72,38.26]
[1756427147099,0.06,215.73,215.72,46.53734244]
[1756427147401,0.06,215.73,215.72,8.27734244]
[1756427147603,0.06,215.73,215.72,38.26]
[1756427148978,0.73,215.73,215.72,38.26]
[1756427149194,9.00734244,215.73,215.71,20.0]
[1756427149499,8.94734244,215.72,215.71,20.0]
[1756427150008,13.58298123,215.72,215.71,20.0]
[1756427150297,8.94734244,215.72,215.71,20.0]
[1756427150497,0.67,215.72,215.71,20.0]
[1756427151298,0.67,215.72,215.69,20.0]
[1756427151507,0.67,215.71,215.69,20.0]
[1756427152784,12.97297796,215.73,215.71,20.0]
[1756427152785,0.73,215.73,215.71,20.0]
[1756427152985,0.06,215.73,215.71,20.0]
[1756427153187,0.67,215.72,215.71,20.0]
[1756427153603,0.06,215.73,215.71,20.0]
[1756427153800,0.73,215.73,215.71,20.0]
[1756427154475,9.00734244,215.73,215.71,20.0]
[1756427154675,13.6427809,215.73,215.71,20.0]
[1756427154894,9.00734244,215.73,215.71,20.0]
[1756427155088,0.06,215.73,215.71,20.0]
[1756427155295,0.06,215.73,215.71,58.24]
[1756427155910,0.06,215.73,215.71,20.0]
[1756427156085,0.67,215.72,215.71,20.0]
[1756427156274,0.06,215.73,215.71,20.0]
[1756427157204,0.06,215.73,215.71,24.63580222]
[1756427157512,0.06,215.73,215.72,46.51734244]
[1756427158075,0.06,215.73,215.72,51.15298123]
[1756427158907,0.06,215.73,215.72,12.91298123]
[1756427159208,0.06,215.73,215.72,51.13298123]
[1756427159385,0.06,215.73,215.71,20.0]
[1756427159585,0.06,215.73,215.72,38.22]
[1756427160303,0.77,215.73,215.72,38.22]
[1756427160603,9.04734244,215.73,215.69,20.0]
[1756427160789,9.04734244,215.73,215.69,24.63624478]
[1756427161102,9.04734244,215.73,215.71,20.0]
[1756427161309,0.77,215.73,215.71,20.0]
[1756427162398,0.77,215.73,215.72,20.0]
[1756427163314,0.77,215.73,215.71,20.0]
[1756427164500,0.06,215.73,215.72,46.49734244]
[1756427164704,0.71,215.72,215.71,20.0]
[1756427165027,0.71,215.72,215.7,38.22]
[1756427165028,8.98734244,215.72,215.7,38.22]
[1756427165215,8.98734244,215.71,215.69,20.0]
[1756427165515,5.74953434,215.7,215.61,20.03]
[1756427165692,5.03953434,215.62,215.61,20.03]
[1756427165894,5.74953434,215.62,215.61,20.03]
[1756427166302,10.38732304,215.62,215.61,0.03]
[1756427166519,5.03953434,215.64,215.61,0.03]
[1756427166713,31.03953434,215.65,215.62,20.0]
[1756427167024,5.74953434,215.64,215.62,20.0]
[1756427167230,5.74953434,215.63,215.61,0.03]
[1756427167404,8.27533678,215.62,215.61,0.03]
[1756427167732,8.98533678,215.62,215.61,0.03]
[1756427169702,13.62312548,215.62,215.61,0.03]
[1756427170102,8.98533678,215.62,215.61,0.03]
[1756427170426,13.62312548,215.62,215.61,0.03]
[1756427171202,8.98533678,215.62,215.61,0.03]
[1756427172017,26.71,215.62,215.61,0.03]
[1756427174624,8.98533678,215.62,215.61,0.03]
[1756427174829,13.62312548,215.62,215.61,0.03]
[1756427175602,27.21871949,215.62,215.61,0.03]
[1756427175999,65.41871949,215.62,215.61,0.03]
[1756427177626,27.21871949,215.62,215.61,0.03]
[1756427177829,65.41871949,215.62,215.61,0.03]
[1756427178214,93.34871949,215.62,215.61,0.03]
[1756427178426,79.75312548,215.62,215.61,0.03]
[1756427179606,51.82312548,215.62,215.61,0.03]
[1756427180135,26.0,215.65,215.61,0.03]
[1756427180299,19.13831114,215.71,215.65,20.0]
[1756427180300,0.71,215.71,215.65,20.0]
[1756427180632,26.0,215.7,215.66,8.27533678]
[1756427180798,0.71,215.72,215.67,20.0]
[1756427180996,0.71,215.72,215.67,28.27533678]
[1756427181199,0.71,215.72,215.67,32.9120492]
[1756427181399,0.06,215.73,215.69,28.27533678]
[1756427181622,8.27533678,215.7,215.67,20.0]
[1756427181820,8.27533678,215.68,215.65,20.0]
[1756427182029,8.27533678,215.66,215.65,20.0]
[1756427182211,8.98533678,215.66,215.65,20.0]
[1756427182722,8.27533678,215.67,215.65,20.0]
[1756427182913,34.27533678,215.69,215.65,20.0]
[1756427183115,26.0,215.68,215.65,20.0]
[1756427185118,26.0,215.7,215.68,20.0]
[1756427185528,0.06,215.73,215.71,20.0]
[1756427185711,0.71,215.72,215.71,20.0]
[1756427186229,0.06,215.73,215.71,20.0]
[1756427187619,0.06,215.73,215.71,24.63581357]
[1756427188027,0.06,215.73,215.71,20.0]
[1756427189709,0.06,215.73,215.72,8.27533678]
[1756427191425,0.06,215.73,215.72,12.91097557]
[1756427191812,0.06,215.73,215.72,107.49089272]
[1756427192129,0.06,215.73,215.72,133.49089272]
[1756427192429,0.2,215.74,215.72,133.49089272]
[1756427192430,1e-08,215.74,215.73,33.87991715]
[1756427192725,1e-08,215.74,215.73,42.61879632]
[1756427192930,9.13533678,215.95,215.8,13.59559401]
[1756427193130,0.86,215.95,215.9,8.27533678]
[1756427193332,0.66,215.94,215.9,8.27533678]
[1756427193532,13.10604697,215.95,215.89,20.0]
[1756427193834,34.27533678,215.92,215.89,20.0]
[1756427194012,8.93533678,215.91,215.87,20.0]
[1756427194211,0.66,215.9,215.87,20.0]
[1756427194633,0.66,215.9,215.87,28.27533678]
[1756427194838,0.2,215.95,215.89,20.0]
[1756427195022,0.2,215.95,215.85,13.59559401]
[1756427195023,0.2,215.95,215.94,20.0]
[1756427195213,0.2,215.95,215.94,28.27533678]
[1756427195536,0.2,215.95,215.94,20.0]
[1756427196344,0.86,215.95,215.94,20.0]
[1756427197641,0.2,215.95,215.94,20.0]
[1756427199033,5.49070155,215.95,215.94,20.0]
[1756427199835,0.2,215.95,215.94,20.0]
[1756427201275,5.49070155,215.95,215.94,20.0]
[1756427201446,13.76603833,215.95,215.92,20.0]
[1756427201761,0.66,215.94,215.92,20.0]
[1756427202336,0.66,215.93,215.92,20.0]
[1756427202582,5.29113045,215.93,215.92,20.0]
[1756427202940,4.63092531,215.94,215.92,20.0]
[1756427203134,4.8307142,215.95,215.92,20.0]
[1756427203338,0.2,215.95,215.92,20.0]
[1756427203558,0.2,215.95,215.94,20.0]
[1756427204251,5.49070155,215.95,215.94,20.0]
[1756427204438,5.49070155,215.95,215.92,20.0]
[1756427204641,5.2910585,215.94,215.92,20.0]
[1756427204841,12.90639528,215.94,215.92,20.0]
[1756427205041,0.66,215.93,215.92,20.0]
[1756427205250,4.6310585,215.94,215.92,20.0]
[1756427205457,5.2910585,215.94,215.92,20.0]
[1756427205878,0.66,215.93,215.92,20.0]
[1756427206646,13.56646723,215.93,215.9,20.0]
[1756427206839,13.56646723,215.93,215.85,20.0]
[1756427206840,8.27533678,215.91,215.85,20.0]
[1756427207060,8.27533678,215.88,215.85,20.0]
[1756427207364,8.93533678,215.88,215.85,20.0]
[1756427207866,0.66,215.88,215.87,20.0]
[1756427208258,0.66,215.88,215.85,20.0]
[1756427208457,8.93533678,215.88,215.87,20.0]
[1756427209176,39.56753985,215.88,215.8,20.0]
[1756427209344,39.56753985,215.88,215.68,0.03]
[1756427209345,8.27533678,215.81,215.77,20.0]
[1756427209540,0.66,215.83,215.8,20.0]
[1756427209744,8.27533678,215.85,215.83,20.0]
[1756427209944,26.66,215.85,215.83,20.0]
[1756427210145,34.93533678,215.85,215.83,20.0]
[1756427210346,26.0,215.86,215.83,20.0]
[1756427210563,26.66,215.86,215.83,20.0]
[1756427211351,0.66,215.86,215.83,20.0]
[1756427211679,26.0,215.87,215.83,28.27533678]
[1756427211973,13.56734609,215.89,215.85,20.0]
[1756427212172,8.93533678,215.88,215.85,20.0]
[1756427212470,0.66,215.87,215.85,20.0]
[1756427212655,8.93533678,215.87,215.85,20.0]
[1756427212974,4.63200931,215.89,215.81,8.27533678]
[1756427212975,8.93533678,215.86,215.81,20.0]
[1756427213275,8.27533678,215.82,215.81,20.0]
[1756427213481,13.56882765,215.82,215.81,20.0]
[1756427213779,13.56882765,215.82,215.79,20.0]
[1756427213965,8.27533678,215.8,215.78,20.0]
[1756427214272,8.93533678,215.79,215.78,20.0]
[1756427214685,12.90882765,215.82,215.8,20.0]
[1756427214977,8.27533678,215.81,215.8,20.0]
[1756427215751,26.66,215.84,215.8,20.0]
[1756427215985,8.93533678,215.82,215.8,20.0]
[1756427216552,34.27533678,215.84,215.8,20.0]
[1756427216753,30.63313004,215.84,215.8,20.0]
[1756427216978,4.63313004,215.84,215.8,20.0]
[1756427217165,38.90820359,215.85,215.8,20.0]
[1756427217359,26.66,215.85,215.82,20.0]
[1756427217950,0.66,215.85,215.82,20.0]
[1756427218154,5.29285529,215.85,215.82,20.0]
[1756427218462,13.56819207,215.85,215.82,20.0]
[1756427218674,0.66,215.84,215.82,20.0]
[1756427219585,0.66,215.83,215.82,20.0]
[1756427220166,8.97533678,215.85,215.82,20.0]
[1756427220482,38.08,215.89,215.78,46.35533678]
[1756427220483,8.27533678,215.89,215.84,20.0]
[1756427220685,8.97533678,215.91,215.86,20.0]
[1756427220888,0.7,215.91,215.86,20.0]
[1756427221191,26.0,215.89,215.86,20.0]
[1756427221563,0.7,215.88,215.86,20.0]
[1756427221773,34.27533678,215.89,215.86,20.0]
[1756427222088,0.9,215.95,215.9,20.0]
[1756427222379,0.2,215.95,215.92,8.27533678]
[1756427222598,0.2,215.95,215.93,20.0]
[1756427222769,0.7,215.94,215.93,20.0]
[1756427223964,4.83074333,215.95,215.93,20.0]
[1756427224161,5.53074333,215.95,215.93,20.0]
[1756427225581,0.2,215.95,215.93,20.0]
[1756427225764,4.83073049,215.95,215.93,20.0]
[1756427226164,8.97533678,215.94,215.93,20.0]
[1756427226479,8.97533678,215.94,215.83,26.0]
[1756427226480,8.97533678,215.94,215.91,20.0]
[1756427226784,8.97533678,215.93,215.91,20.0]
[1756427227186,0.7,215.93,215.91,20.0]
[1756427227575,4.83073049,215.95,215.91,20.0]
[1756427227782,0.2,215.95,215.91,28.27533678]
[1756427227966,0.2,215.95,215.92,8.27533678]
[1756427228169,0.2,215.95,215.94,20.0]
[1756427229279,13.80603833,215.95,215.92,20.0]
[1756427229468,8.27533678,215.93,215.9,20.0]
[1756427229673,5.33113045,215.93,215.92,20.0]
[1756427229987,13.60646723,215.93,215.9,20.0]
[1756427230172,26.0,215.89,215.88,20.0]
[1756427230377,34.97533678,215.89,215.88,20.0]
[1756427230575,26.0,215.89,215.88,20.0]
[1756427230888,8.27533678,215.91,215.88,20.0]
[1756427231088,8.27533678,215.9,215.88,20.0]
[1756427231388,8.97533678,215.89,215.88,20.0]
[1756427231591,26.0,215.9,215.88,20.0]
[1756427231791,5.33153749,215.92,215.88,20.0]
[1756427232096,8.27533678,215.9,215.88,20.0]
[1756427232392,8.97533678,215.89,215.88,20.0]
[1756427233071,8.97533678,215.89,215.87,20.0]
[1756427233269,8.97533678,215.88,215.87,20.0]
[1756427233483,8.97533678,215.88,215.83,20.0]
[1756427233689,5.3324209,215.87,215.83,20.0]
[1756427233905,13.60775768,215.87,215.85,20.0]
[1756427234110,5.3324209,215.87,215.85,20.0]
[1756427234415,13.60775768,215.87,215.85,20.0]
[1756427235314,0.7,215.86,215.83,20.0]
[1756427235514,0.7,215.86,215.85,20.0]
[1756427235688,4.63284688,215.85,215.83,20.0]
[1756427236399,5.33284688,215.85,215.83,20.0]
[1756427237320,4.63284688,215.85,215.83,20.0]
[1756427237491,3.8935802,215.93,215.9,20.0]
[1756427237691,0.2,215.95,215.93,20.0]
[1756427238229,0.2,215.95,215.94,8.27533678]
[1756427239801,0.2,215.95,215.94,12.90625277]
[1756427240001,0.2,215.95,215.94,8.27533678]
[1756427240219,0.2,215.95,215.93,28.27533678]
[1756427240418,0.2,215.95,215.93,20.0]
[1756427240720,0.2,215.95,215.94,8.27533678]
[1756427241114,0.2,215.95,215.93,24.63112169]
[1756427241305,0.2,215.95,215.94,8.27533678]
[1756427241505,0.2,215.95,215.94,46.31533678]
[1756427241906,0.2,215.95,215.94,64.82616992]
[1756427242595,0.2,215.95,215.94,67.14485051]
[1756427242824,0.06,215.98,215.94,67.14485051]
[1756427242825,0.06,215.98,215.97,59.87991715]
[1756427243022,0.06,216.0,215.98,13.87991715]
[1756427243228,0.06,216.0,215.94,56.10379497]
[1756427243229,0.06,216.0,215.99,20.0]
[1756427243410,8.97533678,216.03,215.99,20.0]
[1756427243735,26.0,216.06,216.01,20.0]
[1756427243736,8.27533678,216.05,216.01,20.0]
[1756427243916,8.27533678,216.05,216.03,20.0]
[1756427243917,26.0,216.05,216.03,20.0]
[1756427244907,26.7,216.05,216.03,20.0]
[1756427245158,0.7,216.05,216.03,20.0]
[1756427245424,8.27533678,216.04,216.03,20.0]
[1756427245601,8.97533678,216.04,216.03,20.0]
[1756427245922,36.89701564,216.15,216.03,20.0]
[1756427245923,0.7,216.14,216.09,20.0]
[1756427246095,0.7,216.13,216.09,20.0]
[1756427246298,0.7,216.13,216.11,20.0]
[1756427246698,8.97533678,216.13,216.11,20.0]
[1756427247099,8.27533678,216.14,216.11,20.0]
[1756427247305,8.97533678,216.14,216.11,20.0]
[1756427247500,8.27533678,216.12,216.11,20.0]
[1756427247705,8.97533678,216.12,216.09,20.0]
[1756427247916,8.97533678,216.11,216.09,20.0]
[1756427248320,0.7,216.11,216.09,20.0]
[1756427249927,4.62641684,216.15,216.09,20.0]
[1756427250116,8.27533678,216.12,216.09,20.0]
[1756427250310,8.27533678,216.12,216.11,20.0]
[1756427250511,8.27533678,216.12,216.09,20.0]
[1756427250723,8.27533678,216.11,216.09,20.0]
[1756427250934,8.95533678,216.11,216.09,20.0]
[1756427251645,8.95533678,216.1,216.09,20.0]
[1756427252140,8.27533678,216.1,216.09,20.0]
[1756427252323,26.0,216.14,216.09,20.0]
[1756427252324,4.62705267,216.13,216.09,20.0]
[1756427252531,34.27533678,216.14,216.13,20.0]
[1756427252723,0.68,216.19,216.16,20.0]
[1756427252948,16.18524894,216.25,216.18,20.0]
[1756427253154,8.95533678,216.23,216.18,20.0]
[1756427253458,8.95533678,216.25,216.24,20.0]
[1756427253612,8.27533678,216.25,216.24,20.0]
[1756427254652,34.27533678,216.25,216.24,20.0]
[1756427255655,5.30381278,216.28,216.24,20.0]
[1756427255656,0.04264738,216.31,216.3,20.0]
[1756427255816,8.31798416,216.31,216.3,20.0]
[1756427256024,0.04264738,216.31,216.3,20.0]
[1756427256657,8.31798416,216.31,216.3,20.0]
[1756427256858,0.04264738,216.31,216.3,20.0]
[1756427259635,4.66564215,216.31,216.3,20.0]
[1756427260530,4.72564215,216.31,216.3,20.0]
[1756427261264,0.10264738,216.31,216.3,20.0]
[1756427262367,13.00097893,216.31,216.3,20.0]
[1756427262565,13.68097893,216.31,216.3,20.0]
[1756427262857,0.10264738,216.31,216.3,20.0]
[1756427263452,4.72564215,216.31,216.3,20.0]
[1756427263663,13.00097893,216.31,216.3,20.0]
[1756427263958,4.72564215,216.31,216.3,20.0]
[1756427264132,13.68097893,216.31,216.3,20.0]
[1756427264459,0.10264738,216.31,216.3,28.27533678]
[1756427265645,0.10264738,216.31,216.3,20.0]
[1756427265957,0.10264738,216.31,216.3,28.27533678]
[1756427266542,0.10264738,216.31,216.3,58.12]
[1756427266862,0.10264738,216.31,216.3,66.35533678]
[1756427268338,0.10264738,216.31,216.3,20.0]
[1756427268658,0.10264738,216.31,216.3,66.35533678]
[1756427268862,0.10264738,216.31,216.3,84.85846243]
[1756427269261,0.10264738,216.31,216.3,76.58312565]
[1756427269435,0.10264738,216.31,216.3,84.85846243]
[1756427270852,0.10264738,216.31,216.3,84.89846243]
[1756427272169,0.10264738,216.31,216.3,46.77846243]
[1756427272468,0.10264738,216.31,216.3,84.87846243]
[1756427273542,0.10264738,216.31,216.3,84.85846243]
[1756427273768,0.10264738,216.31,216.3,86.69095743]
[1756427275381,0.10264738,216.31,216.3,78.41562065]
[1756427275669,0.10264738,216.31,216.3,86.69095743]
[1756427276049,0.06,216.34,216.33,33.87991715]
[1756427276251,0.06,216.34,216.33,80.19525393]
[1756427276842,0.06,216.34,216.33,88.47059093]
[1756427277042,1e-08,216.34,216.33,88.93284766]
[1756427277365,8.27533678,216.43,216.42,20.0]
[1756427277540,8.27533678,216.44,216.42,58.04]
[1756427277743,4.74957777,216.47,216.44,20.0]
[1756427278063,4.74957777,216.47,216.45,38.04]
[1756427278064,26.13,216.47,216.45,38.04]
[1756427278243,0.68,216.46,216.45,38.04]
[1756427278761,0.68,216.46,216.45,46.31533678]
[1756427278935,0.68,216.46,216.45,38.04]
[1756427279143,0.68,216.46,216.45,38.02]
[1756427280143,0.68,216.46,216.39,17.25192301]
[1756427280144,26.0,216.45,216.42,20.0]
[1756427280375,8.27533678,216.43,216.42,20.0]
[1756427280562,8.96533678,216.43,216.42,20.0]
[1756427280877,0.69,216.43,216.42,58.16]
[1756427281058,0.69,216.43,216.42,20.0]
[1756427281258,13.58576832,216.43,216.42,20.0]
[1756427281662,0.69,216.45,216.42,58.14]
[1756427281966,8.27533678,216.45,216.44,20.0]
[1756427282172,4.74960706,216.47,216.46,20.0]
[1756427282173,0.13,216.47,216.46,20.0]
[1756427282379,0.13,216.47,216.46,42.15525393]
[1756427282582,1.00915234,216.58,216.57,20.0]
[1756427283075,1.00915234,216.58,216.57,80.51525393]
[1756427283370,1.00915234,216.58,216.57,42.15525393]
[1756427283574,1.00915234,216.58,216.57,46.77269863]
[1756427283780,1.00915234,216.58,216.57,76.83736185]
[1756427283945,1.00915234,216.58,216.57,46.77269863]
[1756427284143,340.33613445,216.67,216.64,20.0]
[1756427284347,340.33613445,216.67,216.66,33.59559401]
[1756427284653,225.07835617,216.67,216.66,81.07525393]
[1756427284850,218.52113721,216.67,216.66,62.15525393]
[1756427285072,213.89325607,216.67,216.66,42.15525393]
[1756427285278,213.89325607,216.67,216.66,105.71078056]
[1756427285460,209.27328657,216.67,216.66,85.71078056]
[1756427285775,143.6325356,216.67,216.66,99.57559856]
[1756427285974,139.0125661,216.67,216.66,99.57559856]
[1756427286176,115.74499423,216.67,216.66,80.63559856]
[1756427286346,111.12502473,216.67,216.66,80.63559856]
[1756427286543,2.42387347,216.67,216.66,119.55559856]
[1756427286886,0.05001648,216.77,216.76,20.0]
[1756427287054,0.05001648,216.77,216.76,67.19533678]
[1756427287882,3.71818379,216.98,216.87,20.0]
[1756427288047,8.27533678,216.88,216.87,20.0]
[1756427288246,8.27533678,216.89,216.87,59.0]
[1756427288446,39.16870189,217.01,216.74,26.0]
[1756427288447,0.69,216.88,216.83,20.0]
[1756427288643,8.27533678,216.86,216.82,20.0]
[1756427288864,8.27533678,216.85,216.83,39.04]
[1756427289078,8.27533678,216.85,216.82,20.0]
[1756427289251,4.61190794,216.83,216.82,39.02]
[1756427289449,13.57724472,216.83,216.8,20.0]
[1756427289666,8.27533678,216.81,216.73,20.0]
[1756427289843,4.61190794,216.83,216.75,20.0]
[1756427289844,8.27533678,216.76,216.75,20.0]
[1756427290048,8.96533678,216.76,216.75,20.0]
[1756427290271,0.69,216.76,216.75,20.0]
[1756427290447,0.69,216.8,216.78,20.0]
[1756427290648,8.96533678,216.79,216.78,20.0]
[1756427290845,8.96533678,216.79,216.77,39.02]
[1756427291081,8.96533678,216.78,216.77,39.1]
[1756427291776,8.96533678,216.78,216.76,20.0]
[1756427291777,13.57832076,216.78,216.76,20.0]
[1756427291976,8.96533678,216.78,216.77,39.08]
[1756427293579,0.69,216.84,216.82,20.0]
[1756427293883,0.69,216.84,216.83,39.06]
[1756427294384,5.3011437,216.87,216.86,20.0]
[1756427294560,0.69,216.87,216.86,59.0]
[1756427295061,13.57639409,216.87,216.86,59.0]
[1756427296878,12.88639409,216.87,216.86,59.0]
[1756427297189,8.27533678,216.96,216.88,20.0]
[1756427297486,4.61020699,216.91,216.88,35.08]
[1756427297700,0.69,216.9,216.88,35.08]
[1756427297868,0.69,216.89,216.88,55.08]
[1756427298180,8.96533678,216.89,216.88,55.08]
[1756427298486,8.96533678,216.89,216.85,20.0]
[1756427298675,8.27533678,216.86,216.85,20.0]
[1756427298876,8.27533678,216.86,216.85,58.98]
[1756427299278,0.69,216.9,216.85,58.98]
[1756427299469,8.27533678,216.86,216.85,58.98]
[1756427300293,5.30076319,216.89,216.85,58.98]
[1756427300468,4.61076319,216.89,216.88,20.0]
[1756427300670,12.88609997,216.89,216.88,20.0]
[1756427300990,4.60999446,216.92,216.89,20.0]
[1756427301163,4.60999446,216.92,216.87,20.0]
[1756427301574,0.69,216.91,216.89,20.0]
[1756427301778,0.69,216.9,216.89,58.94]
[1756427302088,0.69,216.9,216.89,38.92]
[1756427302284,8.96533678,216.9,216.89,58.92]
[1756427303192,8.96533678,216.9,216.89,58.88]
[1756427304069,0.69,216.95,216.89,58.88]
[1756427304276,0.69,216.94,216.93,20.0]
[1756427304478,22.56093079,216.94,216.89,38.9]
[1756427304675,0.69,216.93,216.92,20.0]
[1756427305479,0.69,216.93,216.92,58.88]
[1756427305673,5.29914454,216.96,216.93,20.0]
[1756427305867,8.27533678,216.94,216.93,20.0]
[1756427306202,0.69,216.99,216.96,20.0]
[1756427306368,18.20388894,217.0,216.96,58.88]
[1756427306572,0.69,216.98,216.96,58.88]
[1756427306773,0.69,216.97,216.96,58.88]
[1756427307097,18.89369624,217.01,216.99,20.0]
[1756427307277,0.69,217.0,216.99,20.0]
[1756427307479,8.96533678,217.0,216.99,20.0]
[1756427307782,13.57363171,217.0,216.95,20.0]
[1756427307979,13.59559401,216.95,216.92,19.28]
[1756427308182,16.55067356,216.96,216.85,19.28]
[1756427308183,39.59559401,216.92,216.85,19.28]
[1756427308389,39.59559401,216.92,216.83,38.84]
[1756427308390,8.27533678,216.86,216.83,58.14]
[1756427308690,8.27533678,216.84,216.83,58.14]
[1756427308886,8.27533678,216.86,216.84,19.28]
[1756427309201,8.27533678,216.91,216.89,19.28]
[1756427309371,26.69,216.95,216.92,19.28]
[1756427309571,8.27533678,216.93,216.92,19.28]
[1756427309781,8.27533678,216.93,216.92,58.12]
[1756427310268,0.69,216.99,216.97,19.28]
[1756427310604,8.27533678,216.98,216.97,19.28]
[1756427310971,8.94533678,216.98,216.97,19.28]
[1756427311492,14.26559401,217.01,216.99,19.28]
[1756427311793,21.87093079,217.0,216.99,19.28]
[1756427311979,22.54093079,217.0,216.99,19.28]
[1756427312179,2.0,217.02,217.01,19.28]
[1756427312683,10.27533678,217.02,217.01,19.28]
[1756427313085,2.0,217.02,217.01,19.28]
[1756427313484,2.0,217.02,217.01,19.97]
[1756427313795,2.0,217.02,217.01,24.57808257]
[1756427314995,2.0,217.02,217.01,23.88808257]
[1756427315216,10.27533678,217.02,217.01,58.12]
[1756427315382,2.0,217.02,217.01,62.72808257]
[1756427315592,10.27533678,217.02,217.01,62.72808257]
[1756427315790,2.0,217.02,217.01,63.41808257]
[1756427316898,2.0,217.02,217.01,19.28]
[1756427316899,10.27533678,217.02,217.01,19.28]
[1756427317196,10.27533678,217.02,217.01,58.16]
[1756427317404,1.00915234,217.09,217.03,19.28]
[1756427317610,0.29974028,217.23,217.15,19.28]
[1756427317925,9.16103678,217.16,217.15,19.28]
[1756427318079,1.5557,217.16,217.15,19.28]
[1756427318277,1.5557,217.16,217.12,19.28]
[1756427318481,0.67,217.15,217.09,19.28]
[1756427318698,0.8857,217.16,217.09,19.28]
[1756427318897,0.67,217.14,217.1,19.28]
[1756427319200,0.8857,217.16,217.15,19.28]
[1756427319583,9.16103678,217.16,217.15,19.28]
[1756427319782,9.16103678,217.16,217.15,23.88511167]
[1756427319985,9.16103678,217.16,217.15,19.28]
[1756427320505,9.83103678,217.16,217.15,19.28]
[1756427320684,9.16103678,217.16,217.15,19.28]
[1756427320877,9.83103678,217.16,217.15,19.28]
[1756427321075,9.16103678,217.16,217.15,19.28]
[1756427321481,0.8857,217.16,217.15,23.88511167]
[1756427321698,0.8857,217.16,217.15,19.74051116]
[1756427321909,9.16103678,217.16,217.15,19.28]
[1756427322202,0.8857,217.16,217.15,23.88511167]
[1756427322387,446.77871148,217.22,217.2,19.28]
[1756427322782,455.05404826,217.22,217.2,19.28]
[1756427322981,8.27533678,217.21,217.2,19.28]
[1756427323181,446.77871148,217.22,217.2,19.28]